[Event "FIDE Grand Swiss 2023"]
[Site "Villa Marina, Douglas, Isle of Man"]
[Date "2023.10.29"]
[Round "5.35"]
[White "Huschenbeth, Niclas"]
[Black "Volokitin, Andrei"]
[Result "1-0"]
[WhiteElo "2605"]
[BlackElo "2664"]
[EventDate "2023.10.25"]
[ECO "B48"]
[PlyCount "79"]
[BlackFideId "14107090"]
[TimeControl "40/100 + 20/50 + 15 + 30s/move"]
[WhiteFideId "24604747"]

1.e4 {[%clk 01:40:54] [%emt 00:00:05]} 1...c5 {[%clk 01:40:55] [%emt 00:00:05]} 
2.Nc3 {[%clk 01:41:19] [%emt 00:00:05]} 2...e6 {[%clk 01:41:02] [%emt 00:00:24]} 
3.Nf3 {[%clk 01:40:56] [%emt 00:00:53]} 3...Nc6 {[%clk 01:41:27] [%emt
00:00:05]} 4.d4 {[%clk 01:41:20] [%emt 00:00:05]} 4...cxd4 {[%clk 01:41:54]
[%emt 00:00:04]} 5.Nxd4 {[%clk 01:41:44] [%emt 00:00:05]} 5...Qc7 {[%clk
01:42:22] [%emt 00:00:03]} 6.Be3 {[%clk 01:42:02] [%emt 00:00:12]} 6...a6 
{[%clk 01:42:47] [%emt 00:00:05]} 7.a3 {[%clk 01:42:27] [%emt 00:00:05]} 7...b5 
{[%clk 01:43:07] [%emt 00:00:10]} 8.Nxc6 {[%clk 01:42:49] [%emt 00:00:08]} 
8...Qxc6 {[%clk 01:43:33] [%emt 00:00:04]} 9.Bd3 {[%clk 01:43:12] [%emt
00:00:07]} 9...Bb7 {[%clk 01:41:44] [%emt 00:02:19]} 10.Qd2 {[%clk 01:43:23]
[%emt 00:00:18]} 10...Qc7 {[%clk 01:23:26] [%emt 00:18:48]} 11.O-O-O {[%clk
01:19:11] [%emt 00:24:42]} 11...Nf6 {[%clk 01:19:16] [%emt 00:04:40]} 12.Kb1 
{[%clk 01:15:18] [%emt 00:04:23]} 12...Be7 {[%clk 00:39:35] [%emt 00:40:10]} 
13.f3 {[%clk 01:04:18] [%emt 00:11:32]} 13...O-O {[%clk 00:29:20] [%emt
00:10:45]} 14.Ne2 {[%clk 00:54:15] [%emt 00:10:32]} 14...d5 {[%clk 00:21:20]
[%emt 00:08:30]} 15.e5 {[%clk 00:54:07] [%emt 00:00:38]} 15...Ne4 {[%clk
00:21:11] [%emt 00:00:39]} 16.Qc1 {[%clk 00:42:13] [%emt 00:12:24]} 16...Nc5 
{[%clk 00:12:36] [%emt 00:09:05]} 17.Bg5 {[%clk 00:29:13] [%emt 00:13:31]} 
17...f6 {[%clk 00:07:19] [%emt 00:05:47]} 18.exf6 {[%clk 00:29:30] [%emt
00:00:13]} 18...Bxf6 {[%clk 00:07:46] [%emt 00:00:03]} 19.Bxf6 {[%clk 00:28:48]
[%emt 00:01:11]} 19...Rxf6 {[%clk 00:08:12] [%emt 00:00:04]} 20.f4 {[%clk
00:16:50] [%emt 00:12:28]} 20...d4 {[%clk 00:08:31] [%emt 00:00:12]} 21.Rhg1 
{[%clk 00:15:48] [%emt 00:01:31]} 21...e5 {[%clk 00:08:16] [%emt 00:00:45]} 
22.fxe5 {[%clk 00:15:40] [%emt 00:00:38]} 22...Qxe5 {[%clk 00:08:44] [%emt
00:00:02]} 23.Nxd4 {[%clk 00:14:56] [%emt 00:01:14]} 23...Nxd3 {[%clk 00:09:05]
[%emt 00:00:10]} 24.Rxd3 {[%clk 00:15:22] [%emt 00:00:04]} 24...Qxh2 {[%clk
00:09:31] [%emt 00:00:04]} 25.g4 {[%clk 00:10:49] [%emt 00:05:03]} 25...Rd8 
{[%clk 00:03:23] [%emt 00:06:37]} 26.g5 {[%clk 00:08:52] [%emt 00:02:28]} 
26...Rfd6 {[%clk 00:03:12] [%emt 00:00:41]} 27.Rd2 {[%clk 00:06:12] [%emt
00:03:10]} 27...Qf4 {[%clk 00:03:03] [%emt 00:00:38]} 28.c3 {[%clk 00:06:24]
[%emt 00:00:19]} 28...Rg6 {[%clk 00:02:41] [%emt 00:00:52]} 29.Ka1 {[%clk
00:03:40] [%emt 00:03:14]} 29...Rxg5 {[%clk 00:03:07] [%emt 00:00:04]} 30.Nf3 
{[%clk 00:03:41] [%emt 00:00:29]} 30...Rxd2 {[%clk 00:02:57] [%emt 00:00:40]} 
31.Nxg5 {[%clk 00:04:09] [%emt 00:00:02]} 31...Bd5 {[%clk 00:00:42] [%emt
00:02:45]} 32.Qe1 {[%clk 00:04:11] [%emt 00:00:28]} 32...h6 {[%clk 00:00:58]
[%emt 00:00:14]} 33.Nh3 {[%clk 00:03:27] [%emt 00:01:14]} 33...Rd1+ {[%clk
00:00:31] [%emt 00:00:57]} 34.Qxd1 {[%clk 00:03:50] [%emt 00:00:06]} 34...Qc4 
{[%clk 00:01:00] [%emt 00:00:02]} 35.Kb1 {[%clk 00:02:00] [%emt 00:02:20]} 
35...Qa2+ {[%clk 00:01:03] [%emt 00:00:27]} 36.Kc1 {[%clk 00:02:27] [%emt
00:00:02]} 36...Be4 {[%clk 00:01:24] [%emt 00:00:09]} 37.Qd8+ {[%clk 00:02:08]
[%emt 00:00:50]} 37...Kh7 {[%clk 00:01:51] [%emt 00:00:03]} 38.Rxg7+ {[%clk
00:02:07] [%emt 00:00:30]} 38...Kxg7 {[%clk 00:02:20] [%emt 00:00:02]} 39.Qd4+ 
{[%clk 00:02:28] [%emt 00:00:09]} 39...Kf7 {[%clk 00:02:31] [%emt 00:00:18]} 
40.Qxe4 {[%clk 00:02:52] [%emt 00:00:06]} 1-0

[Event "FIDE Grand Swiss 2023"]
[Site "Villa Marina, Douglas, Isle of Man"]
[Date "2023.10.29"]
[Round "5.36"]
[White "Shirov, Alexei"]
[Black "Amar, Elham"]
[Result "1-0"]
[WhiteElo "2655"]
[BlackElo "2568"]
[EventDate "2023.10.25"]
[ECO "B12"]
[PlyCount "99"]
[BlackFideId "1533533"]
[TimeControl "40/100 + 20/50 + 15 + 30s/move"]
[WhiteFideId "2209390"]

1.e4 {[%clk 01:40:57] [%emt 00:00:01]} 1...c6 {[%clk 01:40:55] [%emt 00:00:06]} 
2.d4 {[%clk 01:41:22] [%emt 00:00:05]} 2...d5 {[%clk 01:41:20] [%emt 00:00:05]} 
3.e5 {[%clk 01:41:48] [%emt 00:00:04]} 3...Bf5 {[%clk 01:41:46] [%emt 00:00:04]} 
4.h4 {[%clk 01:42:05] [%emt 00:00:12]} 4...h5 {[%clk 01:42:09] [%emt 00:00:08]} 
5.Bd3 {[%clk 01:42:19] [%emt 00:00:15]} 5...Bxd3 {[%clk 01:42:32] [%emt
00:00:08]} 6.Qxd3 {[%clk 01:42:43] [%emt 00:00:05]} 6...Qa5+ {[%clk 01:42:57]
[%emt 00:00:05]} 7.Nd2 {[%clk 01:42:48] [%emt 00:00:24]} 7...e6 {[%clk 01:43:21]
[%emt 00:00:06]} 8.Nf3 {[%clk 01:42:46] [%emt 00:00:33]} 8...Nh6 {[%clk
01:43:45] [%emt 00:00:07]} 9.O-O {[%clk 01:42:38] [%emt 00:00:37]} 9...Nf5 
{[%clk 01:44:09] [%emt 00:00:06]} 10.Nb3 {[%clk 01:43:00] [%emt 00:00:08]} 
10...Qb5 {[%clk 01:44:33] [%emt 00:00:06]} 11.Qd1 {[%clk 01:35:56] [%emt
00:07:34]} 11...c5 {[%clk 01:44:46] [%emt 00:00:17]} 12.a4 {[%clk 01:33:45]
[%emt 00:02:42]} 12...Qb6 {[%clk 01:45:10] [%emt 00:00:06]} 13.dxc5 {[%clk
01:17:56] [%emt 00:16:19]} 13...Bxc5 {[%clk 01:45:35] [%emt 00:00:05]} 14.a5 
{[%clk 01:18:19] [%emt 00:00:06]} 14...Qb5 {[%clk 01:45:59] [%emt 00:00:06]} 
15.Nxc5 {[%clk 00:57:28] [%emt 00:21:22]} 15...Qxc5 {[%clk 01:46:24] [%emt
00:00:04]} 16.b3 {[%clk 00:47:51] [%emt 00:10:07]} 16...Nc6 {[%clk 01:46:22]
[%emt 00:00:33]} 17.Ra4 {[%clk 00:42:23] [%emt 00:05:58]} 17...O-O-O {[%clk
01:21:20] [%emt 00:25:31]} 18.Bg5 {[%clk 00:27:28] [%emt 00:15:26]} 18...Rd7 
{[%clk 01:18:40] [%emt 00:03:10]} 19.a6 {[%clk 00:25:12] [%emt 00:02:46]} 
19...b5 {[%clk 01:15:22] [%emt 00:03:48]} 20.Rf4 {[%clk 00:24:54] [%emt
00:00:47]} 20...Kb8 {[%clk 01:05:15] [%emt 00:10:37]} 21.Qd3 {[%clk 00:22:49]
[%emt 00:02:35]} 21...Rc8 {[%clk 01:00:37] [%emt 00:05:09]} 22.Rxf5 {[%clk
00:20:05] [%emt 00:03:14]} 22...exf5 {[%clk 00:51:14] [%emt 00:09:53]} 23.Qxf5 
{[%clk 00:20:30] [%emt 00:00:04]} 23...Rdc7 {[%clk 00:48:52] [%emt 00:02:53]} 
24.e6 {[%clk 00:17:19] [%emt 00:03:40]} 24...fxe6 {[%clk 00:48:37] [%emt
00:00:46]} 25.Qxe6 {[%clk 00:17:45] [%emt 00:00:04]} 25...Nd8 {[%clk 00:44:46]
[%emt 00:04:21]} 26.Qg6 {[%clk 00:17:30] [%emt 00:00:44]} 26...Qxc2 {[%clk
00:44:17] [%emt 00:00:59]} 27.Qxc2 {[%clk 00:15:31] [%emt 00:02:29]} 27...Rxc2 
{[%clk 00:44:43] [%emt 00:00:04]} 28.Nd4 {[%clk 00:15:57] [%emt 00:00:04]} 
28...R2c3 {[%clk 00:40:48] [%emt 00:04:25]} 29.Re1 {[%clk 00:11:12] [%emt
00:05:15]} 29...Ka8 {[%clk 00:37:17] [%emt 00:04:02]} 30.Bf4 {[%clk 00:06:28]
[%emt 00:05:13]} 30...R3c5 {[%clk 00:35:55] [%emt 00:01:52]} 31.Re8 {[%clk
00:04:18] [%emt 00:02:40]} 31...b4 {[%clk 00:36:20] [%emt 00:00:06]} 32.f3 
{[%clk 00:04:03] [%emt 00:00:44]} 32...Nf7 {[%clk 00:34:24] [%emt 00:02:27]} 
33.Re7 {[%clk 00:04:25] [%emt 00:00:06]} 33...Nd8 {[%clk 00:34:51] [%emt
00:00:04]} 34.Rxg7 {[%clk 00:03:51] [%emt 00:01:04]} 34...Ra5 {[%clk 00:23:12]
[%emt 00:12:10]} 35.Rg6 {[%clk 00:04:16] [%emt 00:00:05]} 35...Rac5 {[%clk
00:23:39] [%emt 00:00:03]} 36.Rg8 {[%clk 00:02:11] [%emt 00:02:33]} 36...Nf7 
{[%clk 00:23:39] [%emt 00:00:31]} 37.Rg7 {[%clk 00:02:33] [%emt 00:00:08]} 
37...Nd8 {[%clk 00:24:08] [%emt 00:00:02]} 38.Kh2 {[%clk 00:02:43] [%emt
00:00:19]} 38...Ra5 {[%clk 00:21:59] [%emt 00:02:40]} 39.Rg6 {[%clk 00:03:07]
[%emt 00:00:05]} 39...Rac5 {[%clk 00:22:23] [%emt 00:00:08]} 40.Rf6 {[%clk
00:02:08] [%emt 00:01:27]} 40...Nc6 {[%clk 00:18:46] [%emt 00:04:07]} 41.Ne6 
{[%clk 00:02:23] [%emt 00:00:15]} 41...Rc2 {[%clk 00:19:13] [%emt 00:00:04]} 
42.Nc7+ {[%clk 00:02:08] [%emt 00:00:44]} 42...Kb8 {[%clk 00:19:42] [%emt
00:00:02]} 43.Nxd5+ {[%clk 00:02:30] [%emt 00:00:07]} 43...Ka8 {[%clk 00:20:11]} 
44.Nc7+ {[%clk 00:35:29] [%emt 00:17:31]} 44...Kb8 {[%clk 01:10:41] [%emt
00:00:01]} 45.Nb5+ {[%clk 00:35:43] [%emt 00:00:16]} 45...Ka8 {[%clk 01:11:08]
[%emt 00:00:02]} 46.Rf7 {[%clk 00:35:37] [%emt 00:00:35]} 46...Ra2 {[%clk
01:08:16] [%emt 00:03:24]} 47.Nc7+ {[%clk 00:33:04] [%emt 00:03:02]} 47...Kb8 
{[%clk 01:08:44] [%emt 00:00:02]} 48.Nd5+ {[%clk 00:16:05] [%emt 00:17:28]} 
48...Ka8 {[%clk 01:09:11] [%emt 00:00:04]} 49.Be3 {[%clk 00:16:20] [%emt
00:00:14]} 49...Rg8 {[%clk 00:57:16] [%emt 00:12:27]} 50.Rxa7+ {[%clk 00:15:59]
[%emt 00:00:50]} 1-0

[Event "FIDE Grand Swiss 2023"]
[Site "Villa Marina, Douglas, Isle of Man"]
[Date "2023.10.29"]
[Round "5.37"]
[White "Suleymanli, Aydin"]
[Black "Anton Guijarro, David"]
[Result "1/2-1/2"]
[WhiteElo "2588"]
[BlackElo "2653"]
[EventDate "2023.10.25"]
[ECO "B13"]
[PlyCount "65"]
[BlackFideId "2285525"]
[TimeControl "40/100 + 20/50 + 15 + 30s/move"]
[WhiteFideId "13413937"]

1.e4 {[%clk 01:40:53] [%emt 00:00:06]} 1...c6 {[%clk 01:40:48] [%emt 00:00:12]} 
2.d4 {[%clk 01:41:18] [%emt 00:00:06]} 2...d5 {[%clk 01:41:12] [%emt 00:00:05]} 
3.exd5 {[%clk 01:41:46] [%emt 00:00:03]} 3...cxd5 {[%clk 01:41:35] [%emt
00:00:07]} 4.Bd3 {[%clk 01:42:14] [%emt 00:00:02]} 4...Nc6 {[%clk 01:41:41]
[%emt 00:00:24]} 5.c3 {[%clk 01:42:37] [%emt 00:00:06]} 5...Qc7 {[%clk 01:41:36]
[%emt 00:00:36]} 6.h3 {[%clk 01:42:55] [%emt 00:00:12]} 6...e5 {[%clk 01:41:31]
[%emt 00:00:35]} 7.dxe5 {[%clk 01:43:13] [%emt 00:00:12]} 7...Nxe5 {[%clk
01:41:55] [%emt 00:00:06]} 8.Bb5+ {[%clk 01:43:12] [%emt 00:00:31]} 8...Nc6 
{[%clk 01:42:07] [%emt 00:00:18]} 9.Nf3 {[%clk 01:43:27] [%emt 00:00:16]} 
9...a6 {[%clk 01:42:05] [%emt 00:00:31]} 10.Ba4 {[%clk 01:43:19] [%emt
00:00:37]} 10...Nf6 {[%clk 01:41:34] [%emt 00:01:01]} 11.Bg5 {[%clk 01:42:20]
[%emt 00:01:30]} 11...Be7 {[%clk 01:40:25] [%emt 00:01:39]} 12.O-O {[%clk
01:41:30] [%emt 00:01:19]} 12...O-O {[%clk 01:38:06] [%emt 00:02:50]} 13.Re1 
{[%clk 01:32:56] [%emt 00:09:04]} 13...Bd7 {[%clk 01:20:29] [%emt 00:18:07]} 
14.Bxf6 {[%clk 01:16:08] [%emt 00:17:18]} 14...Bxf6 {[%clk 01:20:51] [%emt
00:00:08]} 15.Qxd5 {[%clk 01:16:20] [%emt 00:00:19]} 15...Rad8 {[%clk 01:18:37]
[%emt 00:02:43]} 16.Bc2 {[%clk 01:10:32] [%emt 00:06:18]} 16...g6 {[%clk
00:52:42] [%emt 00:26:24]} 17.Qc5 {[%clk 01:06:35] [%emt 00:04:27]} 17...b6 
{[%clk 00:51:08] [%emt 00:02:06]} 18.Qc4 {[%clk 01:02:44] [%emt 00:04:20]} 
18...b5 {[%clk 00:50:11] [%emt 00:01:27]} 19.Qc5 {[%clk 01:02:02] [%emt
00:01:11]} 19...b4 {[%clk 00:45:03] [%emt 00:05:39]} 20.Be4 {[%clk 00:45:14]
[%emt 00:17:17]} 20...Rc8 {[%clk 00:39:24] [%emt 00:06:09]} 21.a3 {[%clk
00:42:33] [%emt 00:03:12]} 21...a5 {[%clk 00:30:30] [%emt 00:09:25]} 22.axb4 
{[%clk 00:41:51] [%emt 00:01:11]} 22...axb4 {[%clk 00:30:56] [%emt 00:00:04]} 
23.Ra6 {[%clk 00:38:50] [%emt 00:03:30]} 23...Be7 {[%clk 00:29:06] [%emt
00:02:21]} 24.Qe3 {[%clk 00:39:12] [%emt 00:00:08]} 24...Rfe8 {[%clk 00:27:39]
[%emt 00:01:56]} 25.Bd5 {[%clk 00:23:55] [%emt 00:15:47]} 25...Bf6 {[%clk
00:23:16] [%emt 00:04:54]} 26.Qd2 {[%clk 00:21:31] [%emt 00:02:53]} 26...Kg7 
{[%clk 00:22:50] [%emt 00:00:57]} 27.cxb4 {[%clk 00:16:45] [%emt 00:05:16]} 
27...Qb7 {[%clk 00:19:15] [%emt 00:04:05]} 28.Ra4 {[%clk 00:12:55] [%emt
00:04:20]} 28...Rxe1+ {[%clk 00:16:34] [%emt 00:03:12]} 29.Qxe1 {[%clk 00:09:27]
[%emt 00:03:57]} 29...Qb6 {[%clk 00:16:10] [%emt 00:00:54]} 30.Bxc6 {[%clk
00:08:17] [%emt 00:01:40]} 30...Bxc6 {[%clk 00:09:27] [%emt 00:07:14]} 31.Ra5 
{[%clk 00:03:27] [%emt 00:05:19]} 31...Bxf3 {[%clk 00:05:09] [%emt 00:04:48]} 
32.gxf3 {[%clk 00:03:55] [%emt 00:00:01]} 32...Bxb2 {[%clk 00:05:05] [%emt
00:00:35]} 33.Kg2 {[%clk 00:04:02] [%emt 00:00:24]} 1/2-1/2

[Event "FIDE Grand Swiss 2023"]
[Site "Villa Marina, Douglas, Isle of Man"]
[Date "2023.10.29"]
[Round "5.38"]
[White "Ivanchuk, Vasyl"]
[Black "Rodrigue-Lemieux, Shawn"]
[Result "0-1"]
[WhiteElo "2653"]
[BlackElo "2488"]
[EventDate "2023.10.25"]
[ECO "E51"]
[PlyCount "122"]
[BlackFideId "2620049"]
[TimeControl "40/100 + 20/50 + 15 + 30s/move"]
[WhiteFideId "14100010"]

1.d4 {[%clk 01:40:58]} 1...Nf6 {[%clk 01:40:53] [%emt 00:00:08]} 2.c4 {[%clk
01:41:26] [%emt 00:00:02]} 2...e6 {[%clk 01:41:15] [%emt 00:00:08]} 3.Nf3 
{[%clk 01:41:54] [%emt 00:00:02]} 3...d5 {[%clk 01:41:37] [%emt 00:00:08]} 
4.Nc3 {[%clk 01:42:20] [%emt 00:00:04]} 4...Bb4 {[%clk 01:42:00] [%emt
00:00:07]} 5.e3 {[%clk 01:42:15] [%emt 00:00:35]} 5...O-O {[%clk 01:42:19] [%emt
00:00:10]} 6.a3 {[%clk 01:42:44] [%emt 00:00:02]} 6...Bxc3+ {[%clk 01:42:40]
[%emt 00:00:09]} 7.bxc3 {[%clk 01:43:10] [%emt 00:00:04]} 7...c5 {[%clk
01:42:50] [%emt 00:00:20]} 8.Bb2 {[%clk 01:43:39] [%emt 00:00:01]} 8...Nc6 
{[%clk 01:42:57] [%emt 00:00:22]} 9.Be2 {[%clk 01:44:05] [%emt 00:00:04]} 
9...Na5 {[%clk 01:42:38] [%emt 00:00:50]} 10.cxd5 {[%clk 01:44:30] [%emt
00:00:06]} 10...Qb6 {[%clk 01:42:28] [%emt 00:00:39]} 11.Qc2 {[%clk 01:08:57]
[%emt 00:36:03]} 11...exd5 {[%clk 01:42:29] [%emt 00:00:28]} 12.dxc5 {[%clk
01:09:24] [%emt 00:00:04]} 12...Qxc5 {[%clk 01:42:35] [%emt 00:00:24]} 13.Nd4 
{[%clk 01:09:50] [%emt 00:00:04]} 13...Nc4 {[%clk 01:40:40] [%emt 00:02:25]} 
14.O-O {[%clk 01:10:08] [%emt 00:00:12]} 14...Bd7 {[%clk 01:39:07] [%emt
00:02:02]} 15.a4 {[%clk 01:09:26] [%emt 00:01:13]} 15...Rfe8 {[%clk 01:34:44]
[%emt 00:04:52]} 16.Bxc4 {[%clk 01:08:32] [%emt 00:01:25]} 16...dxc4 {[%clk
01:31:37] [%emt 00:03:35]} 17.Ba3 {[%clk 01:06:37] [%emt 00:02:26]} 17...Qc7 
{[%clk 01:23:15] [%emt 00:08:52]} 18.Rfd1 {[%clk 01:05:11] [%emt 00:01:57]} 
18...Ng4 {[%clk 01:10:13] [%emt 00:13:31]} 19.Nf3 {[%clk 01:05:12] [%emt
00:00:29]} 19...Bc6 {[%clk 01:03:25] [%emt 00:07:18]} 20.Bd6 {[%clk 00:43:10]
[%emt 00:22:33]} 20...Qa5 {[%clk 01:03:28] [%emt 00:00:27]} 21.Nd4 {[%clk
00:43:04] [%emt 00:00:36]} 21...Be4 {[%clk 01:00:26] [%emt 00:03:31]} 22.Qe2 
{[%clk 00:42:25] [%emt 00:01:09]} 22...Ne5 {[%clk 00:38:36] [%emt 00:22:20]} 
23.Nb5 {[%clk 00:22:30] [%emt 00:20:26]} 23...Nd3 {[%clk 00:26:57] [%emt
00:12:08]} 24.Bc7 {[%clk 00:22:53] [%emt 00:00:08]} 24...Qa6 {[%clk 00:27:08]
[%emt 00:00:19]} 25.Bg3 {[%clk 00:23:05] [%emt 00:00:17]} 25...Qf6 {[%clk
00:22:00] [%emt 00:05:38]} 26.Qg4 {[%clk 00:21:00] [%emt 00:02:35]} 26...Bc6 
{[%clk 00:17:29] [%emt 00:05:02]} 27.Nd6 {[%clk 00:21:03] [%emt 00:00:27]} 
27...Re6 {[%clk 00:16:54] [%emt 00:01:05]} 28.Nxc4 {[%clk 00:18:31] [%emt
00:03:03]} 28...Re4 {[%clk 00:16:38] [%emt 00:00:46]} 29.Qe2 {[%clk 00:18:54]
[%emt 00:00:05]} 29...Rxc4 {[%clk 00:16:21] [%emt 00:00:47]} 30.Qxd3 {[%clk
00:18:25] [%emt 00:01:00]} 30...Rxa4 {[%clk 00:16:24] [%emt 00:00:27]} 31.Rxa4 
{[%clk 00:18:33] [%emt 00:00:22]} 31...Bxa4 {[%clk 00:16:41] [%emt 00:00:13]} 
32.Ra1 {[%clk 00:18:55] [%emt 00:00:08]} 32...Rd8 {[%clk 00:15:35] [%emt
00:01:35]} 33.Qc4 {[%clk 00:18:46] [%emt 00:00:35]} 33...Bc6 {[%clk 00:15:09]
[%emt 00:01:01]} 34.Qh4 {[%clk 00:19:09] [%emt 00:00:05]} 34...Qxh4 {[%clk
00:13:41] [%emt 00:02:00]} 35.Bxh4 {[%clk 00:19:38] [%emt 00:00:01]} 35...Rd3 
{[%clk 00:13:57] [%emt 00:00:13]} 36.h3 {[%clk 00:19:07] [%emt 00:01:01]} 
36...a6 {[%clk 00:14:23] [%emt 00:00:04]} 37.Ra3 {[%clk 00:19:21] [%emt
00:00:16]} 37...f6 {[%clk 00:13:54] [%emt 00:01:00]} 38.Bg3 {[%clk 00:19:42]
[%emt 00:00:08]} 38...Kf7 {[%clk 00:14:06] [%emt 00:00:18]} 39.Bc7 {[%clk
00:20:07] [%emt 00:00:06]} 39...Ke6 {[%clk 00:13:21] [%emt 00:01:15]} 40.Bb6 
{[%clk 00:20:19] [%emt 00:00:18]} 40...Kd5 {[%clk 00:12:34] [%emt 00:01:17]} 
41.Bd4 {[%clk 00:20:34] [%emt 00:00:15]} 41...Rd1+ {[%clk 00:10:23] [%emt
00:02:41]} 42.Kh2 {[%clk 00:21:02] [%emt 00:00:03]} 42...Kc4 {[%clk 00:10:46]
[%emt 00:00:07]} 43.f3 {[%clk 00:21:22] [%emt 00:00:09]} 43...Rb1 {[%clk
00:10:42] [%emt 00:00:35]} 44.e4 {[%clk 00:21:38] [%emt 00:00:13]} 44...Kb5 
{[%clk 00:01:37] [%emt 00:09:34]} 45.e5 {[%clk 00:21:31] [%emt 00:00:39]} 
45...fxe5 {[%clk 00:00:54] [%emt 00:01:12]} 46.Bxe5 {[%clk 00:21:57] [%emt
00:00:04]} 46...g6 {[%clk 00:01:13] [%emt 00:00:11]} 47.Bc7 {[%clk 00:19:44]
[%emt 00:02:43]} 47...Bd5 {[%clk 00:46:58] [%emt 00:04:45]} 48.Ra5+ {[%clk
01:09:52] [%emt 00:00:23]} 48...Kc4 {[%clk 00:45:20] [%emt 00:02:07]} 49.Be5 
{[%clk 01:10:08] [%emt 00:00:13]} 49...Rb5 {[%clk 00:43:14] [%emt 00:02:37]} 
50.Rxb5 {[%clk 01:09:23] [%emt 00:01:15]} 50...Kxb5 {[%clk 00:43:38] [%emt
00:00:06]} 51.Kg3 {[%clk 01:09:52] [%emt 00:00:01]} 51...Kc4 {[%clk 00:38:58]
[%emt 00:05:09]} 52.Kf2 {[%clk 01:10:10] [%emt 00:00:12]} 52...Kd3 {[%clk
00:38:53] [%emt 00:00:35]} 53.Bc7 {[%clk 01:08:30] [%emt 00:02:10]} 53...Kxc3 
{[%clk 00:38:47] [%emt 00:00:36]} 54.Bb6 {[%clk 01:08:56] [%emt 00:00:05]} 
54...Kb4 {[%clk 00:38:21] [%emt 00:00:56]} 55.Ke3 {[%clk 01:09:21] [%emt
00:00:05]} 55...Kb5 {[%clk 00:36:00] [%emt 00:02:52]} 56.Bd8 {[%clk 01:09:22]
[%emt 00:00:28]} 56...Kc4 {[%clk 00:23:36] [%emt 00:12:53]} 57.Bb6 {[%clk
01:09:40] [%emt 00:00:13]} 57...Be6 {[%clk 00:22:47] [%emt 00:01:18]} 58.h4 
{[%clk 01:08:49] [%emt 00:01:21]} 58...Kb5 {[%clk 00:22:14] [%emt 00:01:04]} 
59.Bd8 {[%clk 01:09:04] [%emt 00:00:15]} 59...Kb4 {[%clk 00:21:47] [%emt
00:00:57]} 60.Be7+ {[%clk 01:02:51] [%emt 00:06:43]} 60...Kc4 {[%clk 00:21:07]
[%emt 00:01:09]} 61.Bd8 {[%clk 00:53:53] [%emt 00:09:29]} 61...b5 {[%clk
00:21:24] [%emt 00:00:13]} 0-1